bitfinex/quotes_ETHUSD_20250115
["timestamp","ask_amount","ask_price","bid_price","bid_amount"]
[1736903420263,0.8303,3237.1,3236.0,0.7802]
[1736903420421,0.8303,3237.1,3236.1,0.41794316]
[1736903420621,0.8303,3237.1,3236.5,3.08967]
[1736903420862,0.8303,3237.1,3236.6,3.08963]
[1736903421167,0.8303,3237.1,3236.7,0.03089333]
[1736903421463,0.1695669,3237.2,3237.1,3.08918]
[1736903425476,0.1695669,3237.2,3237.1,6.86938]
[1736903425684,0.1695669,3237.2,3237.1,7.556318]
[1736903427537,6.9e-06,3237.2,3237.1,7.556318]
[1736903429087,6.9e-06,3237.2,3237.1,8.106318]
[1736903429373,6.9e-06,3237.2,3237.1,8.356318]
[1736903429601,0.8303,3239.0,3238.7,3.08757]
[1736903429798,0.8303,3239.5,3238.7,3.08757]
[1736903430408,0.8303,3239.5,3239.0,3.08736]
[1736903430702,0.50232592,3240.6,3239.0,3.08736]
[1736903430703,3.91637,3240.4,3239.2,3.08715]
[1736903430898,2.92181027,3240.2,3239.2,3.11801705]
[1736903431106,0.8303,3239.5,3238.2,0.7802]
[1736903431254,0.8303,3239.5,3238.6,0.63056485]
[1736903431255,0.92521103,3239.4,3238.6,0.63056485]
[1736903431556,0.55,3239.4,3238.8,3.08752]
[1736903431757,0.55,3239.4,3238.6,0.63056485]
[1736903432300,0.55,3239.4,3238.7,0.04301814]
[1736903433263,0.55,3239.4,3238.7,3.13066814]
[1736903433801,0.55,3239.4,3238.7,0.04301814]
[1736903436990,1.045498,3239.4,3238.5,3.70671053]
[1736903437212,1.045498,3239.4,3238.8,0.03328212]
[1736903437425,1.045498,3239.4,3238.5,3.08784]
[1736903437602,1.045498,3239.4,3238.9,0.03328212]
[1736903437783,1.045498,3239.4,3238.5,3.08784]
[1736903437984,1.045498,3239.4,3239.0,0.03328212]
[1736903438185,1.045498,3239.4,3238.5,3.08784]
[1736903438716,0.55,3239.4,3238.6,0.06415574]
[1736903438922,0.55,3239.4,3238.8,3.08755]
[1736903439325,0.55,3239.4,3238.6,3.08773]
[1736903439486,0.55,3239.4,3238.9,0.03328212]
[1736903439681,0.55,3239.4,3238.6,3.08773]
[1736903439887,0.55,3239.4,3238.7,0.03328212]
[1736903440911,0.55,3239.2,3238.7,0.03328212]
[1736903441231,0.55,3239.2,3238.5,0.6181836]
[1736903441393,0.55,3239.2,3238.8,0.03157143]
[1736903441593,0.55,3239.2,3238.5,3.7060136]
[1736903441806,0.55,3239.2,3238.9,0.03157143]
[1736903442011,0.55,3239.2,3238.5,3.7060136]
[1736903442217,0.55,3239.2,3239.0,0.03157143]
[1736903442424,0.55,3239.2,3238.5,3.7060136]
[1736903442628,0.55,3239.2,3239.1,0.03157143]
[1736903442830,0.55,3239.2,3238.5,3.7060136]
[1736903443128,0.7681,3239.0,3238.1,3.08819]
[1736903443284,1.208628,3239.0,3238.6,0.0305747]
[1736903443494,1.208628,3239.0,3238.1,3.08819]
[1736903443832,1.208628,3239.0,3238.2,3.1186947]
[1736903444017,0.7681,3239.0,3238.6,3.08775]
[1736903444217,0.8296,3239.3,3238.7,3.11844305]
[1736903444526,0.8296,3239.3,3238.8,3.11817923]
[1736903444726,0.8296,3239.3,3238.9,0.03087138]
[1736903445033,0.8296,3239.6,3238.9,3.08738]
[1736903445529,0.8296,3239.6,3239.0,0.03061923]
[1736903445906,0.8296,3239.4,3238.5,3.08782]
[1736903446093,0.55,3239.3,3239.1,0.02959859]
[1736903446294,0.8296,3239.0,3237.8,3.08843]
[1736903446515,0.8296,3238.7,3237.9,3.11684438]
[1736903446908,0.8296,3238.7,3238.0,3.0]
[1736903447103,0.8296,3238.7,3238.0,3.02745776]
[1736903447305,0.55,3238.6,3238.0,0.02745776]
[1736903447527,0.55,3238.6,3237.4,0.8152]
[1736903447708,0.55,3238.6,3238.1,0.02745776]
[1736903447910,0.446726,3238.5,3237.7,3.69753261]
[1736903448134,0.55,3238.6,3238.2,0.02745776]
[1736903448294,0.55,3238.6,3237.8,3.0885]
[1736903448495,0.55,3238.6,3237.9,0.0583387]
[1736903448711,0.55,3238.6,3237.9,0.02745776]
[1736903449034,0.7937,3238.5,3237.7,3.69751261]
[1736903449237,0.7937,3238.5,3238.0,0.02745776]
[1736903449443,0.55,3238.2,3237.4,0.63305978]
[1736903449908,0.55,3238.2,3237.1,4.502138]
[1736903449909,0.7937,3238.1,3237.1,3.776078]
[1736903450108,0.7937,3237.9,3237.1,3.08914]
[1736903450637,0.7937,3237.9,3236.9,3.0]
[1736903450790,0.7937,3238.2,3237.8,3.08851]
[1736903450990,0.7937,3238.2,3237.9,0.03088093]
[1736903451210,0.7937,3238.7,3238.0,3.0883]
[1736903451639,0.7937,3238.7,3237.6,0.8152]
[1736903451931,0.7937,3238.7,3237.8,3.0885]
[1736903452136,0.7937,3238.7,3238.0,3.0883]
[1736903452436,0.7937,3238.7,3238.1,0.03087962]
[1736903452938,0.7937,3238.7,3238.0,3.11917914]
[1736903453637,0.7937,3238.7,3238.0,3.0883]
[1736903453956,0.7937,3238.7,3237.8,3.47886]
[1736903454102,0.7937,3238.7,3237.9,0.347886]
[1736903454301,0.188,3239.1,3237.6,0.6113691]
[1736903454302,0.7937,3238.5,3237.6,0.6113691]
[1736903454703,0.7937,3238.5,3237.7,3.11945173]
[1736903454944,0.7937,3238.5,3237.7,3.08857]
[1736903455904,0.7937,3238.3,3237.6,0.6113691]
[1736903456062,0.7937,3238.3,3237.7,3.08856]
[1736903456214,0.7937,3238.3,3237.8,0.03088205]
[1736903456414,0.7937,3238.3,3237.9,3.08833]
[1736903456614,0.7937,3238.3,3238.0,0.03088045]
[1736903457358,1.3437,3239.0,3238.0,3.11917045]
[1736903457715,1.3437,3239.0,3238.0,0.03088045]
[1736903457919,1.3437,3239.0,3238.1,3.08822]
[1736903458414,1.3437,3239.0,3238.1,3.397042]
[1736903458616,0.7937,3239.0,3238.2,0.84607916]
[1736903458816,0.7937,3239.6,3238.8,3.08754]
[1736903459157,0.7937,3239.6,3238.9,0.02733291]
[1736903459458,0.55,3239.5,3238.9,0.02733291]
[1736903459668,0.55,3239.3,3238.9,0.02733291]
[1736903459868,0.7937,3239.4,3238.7,3.08765]
[1736903460164,0.7937,3239.4,3238.8,0.05808789]
[1736903460369,0.7937,3239.4,3238.8,0.02721599]
[1736903460878,0.7937,3239.4,3238.8,3.11475599]
[1736903461183,0.55,3239.3,3238.8,0.02721599]
[1736903461471,1.3437,3238.9,3238.8,0.02721599]
[1736903461628,0.55,3238.6,3237.9,3.2243667]
[1736903461828,0.7937,3238.5,3237.6,3.2243667]
[1736903462057,0.7937,3238.5,3237.7,0.63131367]
[1736903462582,0.7937,3238.5,3237.7,3.63131367]
[1736903462740,0.7937,3238.5,3237.7,3.71991367]
[1736903462941,0.7937,3238.5,3237.7,3.0886]
[1736903463142,0.55,3238.2,3237.4,3.08885]
[1736903463374,0.7908,3238.1,3237.2,3.08906]
[1736903463580,0.7908,3238.1,3237.1,3.9872667]
[1736903463879,0.7908,3238.1,3237.5,3.08879]
[1736903464883,0.7908,3238.1,3236.9,3.0]
[1736903464884,0.7735,3237.8,3236.8,4.0275667]
[1736903465582,0.55,3237.7,3236.8,3.89264]
[1736903465767,0.7735,3237.4,3236.5,6.3140367]
[1736903466081,0.55,3237.3,3236.6,3.08965]
[1736903466267,0.7735,3237.4,3236.9,3.08936]
[1736903468593,0.7735,3237.4,3236.6,0.03089243]
[1736903468793,0.7735,3237.4,3236.7,3.08955]
[1736903469105,0.7735,3237.4,3236.7,3.52243182]
[1736903469273,0.7735,3237.4,3236.7,0.43288182]
[1736903470302,0.55,3237.3,3236.7,0.43288182]
[1736903470505,0.55,3237.3,3236.5,3.0]
[1736903470813,0.55,3237.3,3236.6,0.03089278]
[1736903471108,0.7735,3237.4,3236.8,3.08945]
[1736903471807,0.7735,3237.4,3236.9,0.0308907]
[1736903472006,0.7735,3237.4,3236.8,3.08945]
[1736903472684,0.7735,3237.4,3236.8,3.398395]
[1736903473012,0.55,3237.3,3236.5,3.08966]
[1736903473600,0.7735,3237.2,3236.5,3.08966]
[1736903474178,0.7735,3237.2,3236.5,3.12055274]
[1736903475006,0.7735,3237.2,3236.5,3.08966]
[1736903475707,0.7735,3237.2,3236.3,3.71003713]
[1736903475912,0.7735,3237.2,3236.4,3.45132371]
[1736903477011,0.7735,3237.2,3236.4,3.54116371]
[1736903478068,0.7735,3237.2,3236.5,3.08974]
[1736903478937,0.7735,3237.2,3236.4,0.45132371]
[1736903479140,0.7735,3237.2,3236.4,3.54117371]
[1736903479321,0.7735,3237.2,3236.5,0.41612908]
[1736903479645,0.55,3237.1,3236.3,0.62011713]
[1736903479799,0.55,3236.7,3236.3,0.62011713]
[1736903480004,0.7673,3236.6,3236.0,3.0902]
[1736903481343,0.7673,3236.6,3235.7,0.03089831]
[1736903481545,0.7673,3236.9,3236.4,3.08983]
[1736903482422,0.7673,3236.9,3236.1,3.71853978]
[1736903482754,0.7673,3236.9,3236.2,3.0]
[1736903484632,0.19,3237.2,3235.9,3.0903]
[1736903484633,0.7673,3236.7,3235.9,3.0903]
[1736903484834,0.55,3236.6,3235.9,3.0903]
[1736903485551,0.55,3236.6,3236.0,3.09021]
[1736903485735,0.7673,3236.7,3236.1,0.309021]
[1736903485936,0.7673,3236.7,3235.9,0.03089899]
[1736903486109,0.7673,3236.7,3236.1,3.09009]
[1736903486720,0.7673,3236.7,3236.2,0.0308982]
[1736903486921,0.7673,3236.7,3236.3,3.0899]
[1736903487407,0.7673,3236.7,3235.8,0.6043177]
[1736903487705,0.7673,3236.7,3235.8,0.36948877]
[1736903488256,0.7673,3236.4,3235.5,3.09069]
[1736903488420,0.7673,3236.4,3235.6,3.0]
[1736903489729,0.7673,3236.4,3235.6,0.63397328]
[1736903490313,0.7673,3236.1,3235.2,3.0909]
[1736903490539,0.7673,3236.1,3235.2,4.08452725]
[1736903491017,0.7673,3236.1,3235.3,3.09089]
[1736903491955,0.7673,3236.1,3235.2,0.389]
[1736903492111,0.7673,3236.1,3235.2,3.389]
[1736903492312,0.7673,3236.1,3235.2,0.389]
[1736903492508,0.7673,3236.0,3235.2,0.389]
[1736903492713,0.7673,3236.0,3235.2,3.09095]
[1736903493609,2.90656274,3235.3,3235.1,0.03090745]
[1736903493811,0.7673,3235.2,3234.4,6.3160967]
[1736903493999,2.90656274,3235.3,3234.2,0.7991]
[1736903494000,2.90656274,3235.0,3234.2,3.2243667]
[1736903494196,0.7673,3234.9,3234.2,3.2243667]
[1736903494370,0.7673,3234.9,3234.3,0.38508374]
[1736903494566,0.7673,3234.9,3234.2,3.2243667]
[1736903494767,0.7673,3234.6,3233.5,0.7991]
[1736903495003,0.7673,3234.6,3233.5,3.89166]
[1736903495166,0.7673,3234.4,3233.3,3.09277]
[1736903495368,6.76564274,3234.4,3233.3,3.09277]
[1736903495582,6.76564274,3234.4,3233.6,0.62746142]
[1736903496199,6.76564274,3234.4,3233.7,0.02729928]
[1736903496715,3.67386274,3234.4,3233.7,0.02729928]
[1736903497079,0.7673,3234.0,3233.1,3.09297]
[1736903497282,0.75064427,3234.4,3232.8,3.09324]
[1736903497283,2.90656274,3233.8,3232.8,3.09324]
[1736903497482,0.7673,3233.7,3232.6,3.09346]
[1736903498015,0.55,3233.6,3232.7,0.02893086]
[1736903498627,0.55,3233.6,3232.8,0.0279665]
[1736903498983,0.55,3233.6,3232.6,3.09344]
[1736903499336,0.55,3233.6,3232.9,0.0279665]
[1736903499636,0.55,3233.6,3233.0,0.0279665]
[1736903499792,0.55,3233.6,3232.7,0.37015197]
[1736903499983,0.55,3233.6,3233.1,0.0279665]
[1736903500177,0.55,3233.6,3232.7,0.37015197]
[1736903500379,0.55,3233.6,3233.2,0.0279665]
[1736903500574,0.55,3233.6,3232.8,0.3463592]
[1736903500823,0.55,3233.6,3233.3,0.0279665]
[1736903501066,0.55,3233.6,3232.8,0.3463592]
[1736903501175,0.55,3233.6,3233.4,0.0279665]
[1736903501374,0.55,3233.6,3232.5,0.60807965]
[1736903501619,0.42238627,3233.5,3232.5,3.70163965]
[1736903501823,0.55,3233.3,3232.6,0.0279665]
[1736903502834,0.7673,3233.4,3232.6,0.05890043]
[1736903503018,0.7673,3233.4,3232.8,3.09326]
[1736903503525,0.7673,3233.4,3232.9,0.0279665]
[1736903505085,0.7673,3233.4,3233.0,3.09309]
[1736903505329,0.7673,3233.4,3233.1,3.40508565]
[1736903505539,0.7673,3233.4,3233.1,0.31210565]
[1736903505688,0.7673,3233.4,3233.2,0.02865292]
[1736903506029,0.7673,3233.4,3232.6,0.7991]
[1736903506235,0.7673,3233.4,3233.3,0.02915512]
[1736903506402,0.7673,3233.4,3232.8,3.09329]
[1736903506601,0.7673,3233.4,3233.3,0.02915512]
[1736903506947,0.7673,3233.4,3232.8,3.09329]
[1736903507101,0.7673,3233.4,3232.9,0.309329]
[1736903507617,0.7673,3233.4,3233.0,0.02915512]
[1736903509783,0.7673,3233.4,3232.6,3.92346912]
[1736903509935,0.7673,3233.4,3233.1,0.02910488]
[1736903510132,0.7673,3233.4,3232.6,3.92346912]
[1736903510378,0.7673,3233.4,3232.7,0.48225976]
[1736903512779,0.55,3233.3,3232.7,0.02910488]
[1736903512968,3.9073,3233.1,3232.1,3.09392]
[1736903513172,3.9073,3233.1,3232.8,0.02910488]
[1736903513390,3.9073,3233.1,3232.3,0.61774649]
[1736903513751,3.09312,3233.0,3232.4,0.02910488]
[1736903513950,0.8143,3232.7,3231.6,0.8142]
[1736903514184,3.90777,3232.7,3231.7,3.02813472]
[1736903514891,0.8143,3232.7,3231.8,0.60559857]
[1736903515049,0.8143,3232.4,3231.7,0.02813472]
[1736903515255,0.8143,3232.4,3231.4,3.09459]
[1736903515494,0.8143,3232.4,3231.8,0.02863722]
[1736903515694,0.8143,3232.4,3231.4,3.09459]
[1736903515891,0.8143,3232.4,3231.9,0.02871541]
[1736903516224,0.8143,3232.4,3231.4,3.09459]
[1736903516225,0.8143,3232.4,3231.7,0.61142462]
[1736903516423,3.908,3232.4,3232.0,0.02924588]
[1736903516724,3.0938,3232.3,3231.3,0.8142]
[1736903516920,3.0938,3232.3,3231.3,3.8142]
[1736903517120,3.0938,3232.3,3231.4,0.02924588]
[1736903517623,1.5329649,3232.4,3231.6,0.6082017]
[1736903517837,1.5329649,3232.4,3230.5,3.09545]
[1736903517838,3.09445,3231.6,3230.5,3.09545]
[1736903518017,2.90656274,3231.5,3230.7,0.61762253]
[1736903518531,7.00613274,3231.8,3230.8,0.03094897]
[1736903518718,7.00613274,3231.8,3230.8,3.12613897]
[1736903519027,7.00613274,3231.8,3230.8,3.09519]
[1736903519226,7.00613274,3231.8,3230.9,0.03094754]
[1736903519593,7.00613274,3231.8,3230.8,3.46956601]
[1736903520095,7.00613274,3231.8,3230.9,0.03094754]
[1736903520296,7.00613274,3231.8,3230.8,3.46956601]
[1736903520919,3.91186274,3231.8,3230.9,0.03094754]
[1736903521237,1.0053,3231.8,3231.0,0.35005136]
[1736903521434,3.91186274,3231.8,3230.8,0.03094723]
[1736903521729,1.0053,3231.8,3231.0,3.09501]
[1736903521901,1.0053,3231.8,3231.1,0.03094495]
[1736903522321,0.191,3231.8,3231.2,3.70144753]
[1736903522522,0.8237,3232.1,3231.3,3.49881209]
[1736903522691,0.8237,3232.1,3231.3,1.18583925]
[1736903522906,0.8237,3232.1,3230.4,3.09557]
[1736903522907,0.55,3232.0,3230.4,0.8126]
[1736903523123,0.8237,3231.7,3230.4,0.8126]
[1736903523309,0.8237,3231.7,3230.5,3.09546]
[1736903523310,3.09457,3231.5,3230.5,3.09546]
[1736903523515,0.8237,3231.7,3230.9,0.62673062]
[1736903523763,3.09447,3231.6,3230.9,0.62673062]
[1736903523966,3.77694327,3231.6,3231.0,0.02780096]
[1736903524178,3.73026274,3231.5,3231.0,0.02780096]
[1736903524467,0.8237,3231.1,3230.0,3.90855]
[1736903524759,3.09507,3231.0,3230.2,0.62344379]
[1736903524966,0.8237,3231.1,3230.2,0.62344379]
[1736903525275,0.8237,3231.1,3230.3,0.02780096]
[1736903525671,0.8237,3231.1,3230.3,0.40559686]
[1736903526371,0.8237,3231.7,3230.7,3.0953]
[1736903526570,4.10907,3231.7,3230.7,3.0]
[1736903526743,4.10907,3231.7,3230.8,0.02780096]
[1736903526744,0.55,3231.6,3230.8,0.02780096]
[1736903526942,3.64446,3231.6,3230.8,0.02780096]
[1736903527146,4.110376,3231.6,3230.8,0.02780096]
[1736903527539,1.015916,3231.6,3230.8,0.02780096]
[1736903527984,1.0147,3231.7,3230.8,0.05875116]
[1736903528544,1.0147,3231.7,3230.8,0.02780096]
[1736903528746,0.8237,3231.7,3230.7,3.0953]
[1736903528978,0.8237,3231.7,3230.8,0.05939052]
[1736903529143,0.8237,3231.7,3231.0,3.095]
[1736903529340,0.8237,3232.0,3231.1,3.40434]
[1736903529655,0.8237,3232.0,3231.2,3.12319355]
[1736903530193,0.8237,3232.0,3231.3,0.84354466]
[1736903530397,0.8237,3232.4,3231.9,3.09406]
[1736903530562,0.191,3232.6,3232.0,3.1249673]
[1736903530762,0.191,3232.6,3232.0,0.8126]
[1736903531071,0.191,3232.6,3232.1,0.02835972]
[1736903532289,0.18728198,3232.6,3232.1,0.02835972]
[1736903534286,3.09375,3232.4,3232.1,0.02835972]
[1736903534454,3.91756,3232.2,3232.1,0.02835972]
[1736903534660,0.8237,3232.2,3231.3,3.09469]
[1736903535056,0.8237,3232.2,3231.4,0.05887853]
[1736903535257,0.8237,3232.2,3231.4,3.1225151]
[1736903535505,0.8237,3232.2,3231.4,3.73330623]
[1736903535672,0.8237,3232.2,3231.5,0.37642481]
[1736903536068,0.8237,3232.2,3231.6,0.0279351]
[1736903538310,3.09362,3232.5,3231.8,3.09421]
[1736903538311,0.782,3232.5,3231.8,3.09421]
[1736903538666,0.782,3232.5,3231.9,0.02778419]
[1736903542467,0.782,3232.5,3231.9,0.05872204]
[1736903542671,0.782,3232.5,3232.0,3.09405]
[1736903542910,0.782,3232.5,3232.1,0.3152772]
[1736903543214,0.782,3232.5,3232.0,0.02765012]
[1736903543511,0.782,3232.5,3231.9,0.03093785]
[1736903543665,0.782,3232.5,3232.1,0.02765012]
[1736903543869,0.782,3232.5,3231.9,0.03093785]
[1736903544399,0.782,3232.5,3232.0,0.02765012]
[1736903544712,0.782,3232.5,3232.0,3.43696292]
[1736903544916,0.7693,3233.0,3232.1,3.12489784]
[1736903545275,0.7693,3233.0,3232.2,0.02756075]
[1736903547018,0.7693,3233.0,3232.4,3.09365]
[1736903547227,0.7693,3233.0,3232.5,0.387785]
[1736903547505,0.7693,3233.0,3232.3,0.81175516]
[1736903547675,0.7693,3233.0,3232.3,0.7842]
[1736903547876,0.7693,3233.0,3232.4,0.02755516]
[1736903548077,3.68617042,3233.0,3232.4,0.02755516]
[1736903548317,0.7693,3232.9,3232.0,0.3152728]
[1736903548608,3.86251,3232.9,3232.0,0.3152728]
[1736903548801,3.0934,3232.7,3232.1,0.02708039]
[1736903548996,3.0934,3232.7,3231.9,0.61810865]
[1736903549199,3.46687042,3232.7,3232.2,0.02706922]
[1736903549502,0.7693,3232.4,3231.5,3.0945]
[1736903549710,0.7693,3232.4,3231.6,3.60552329]
[1736903550056,3.863,3232.4,3231.6,4.01951381]
[1736903550607,3.863,3232.4,3231.6,4.63824243]
[1736903550976,0.7693,3232.4,3231.6,4.63824243]
[1736903551179,0.7693,3232.4,3231.6,1.66918408]
[1736903551380,0.7693,3232.4,3231.7,3.0943]
[1736903551582,0.7693,3232.8,3231.8,0.03093926]
[1736903551783,0.7693,3232.8,3232.4,3.0936]
[1736903552007,0.7693,3233.1,3232.1,3.09392]
[1736903552419,3.86239,3233.1,3232.2,0.02725353]
[1736903552581,0.7693,3233.0,3232.2,0.02725353]
[1736903552983,0.7693,3233.0,3232.2,3.12110353]
[1736903553407,0.7693,3233.0,3232.3,0.030936]
[1736903553846,0.7693,3233.0,3232.4,0.02725353]
[1736903554054,3.0931,3233.0,3232.0,3.09405]
[1736903554348,3.0931,3233.0,3232.5,0.02725353]
[1736903554349,0.7693,3232.9,3232.5,0.02725353]
[1736903554546,0.7693,3232.9,3232.0,3.09405]
[1736903554852,0.7693,3232.9,3232.1,3.09394]
[1736903555063,0.7693,3232.9,3232.1,3.12119353]
[1736903556356,0.7693,3232.9,3232.1,3.15212953]
[1736903556538,0.7693,3232.9,3232.2,0.31521295]
[1736903556945,0.7693,3232.9,3232.3,0.02725353]
[1736903558270,0.7693,3232.9,3232.4,0.02725353]
[1736903558473,0.7693,3232.9,3232.1,3.09394]
[1736903558628,0.7693,3232.9,3232.5,0.02725353]
[1736903558829,0.7693,3232.9,3232.1,3.09394]
[1736903559036,0.7693,3232.9,3232.6,0.02725353]
[1736903559273,0.7693,3232.9,3232.1,0.0648476]
[1736903559466,0.7693,3232.9,3232.7,0.02725353]
[1736903559666,0.7693,3232.9,3231.9,3.87827]
[1736903559868,0.7693,3232.9,3232.8,0.02725353]
[1736903560057,0.7693,3232.9,3232.0,3.12496595]
[1736903560571,0.7693,3232.9,3232.1,0.02725353]
[1736903560766,0.386241,3232.8,3232.1,0.02725353]
[1736903560970,3.479571,3232.8,3232.1,0.02725353]
[1736903561176,3.8627,3232.7,3232.1,0.02725353]
[1736903561391,3.8627,3232.7,3231.8,0.61373619]
[1736903561392,0.7693,3232.7,3232.2,0.02720326]
[1736903561550,0.7693,3233.0,3232.0,3.87821]
[1736903561751,0.7693,3233.0,3232.4,3.09359]
[1736903562189,0.7693,3233.0,3232.5,0.05814156]
[1736903562387,0.7693,3233.0,3232.5,3.12077884]
[1736903563660,0.7693,3233.0,3232.5,3.74483348]
[1736903563872,0.7844,3233.7,3232.8,3.09327]
[1736903564057,0.7844,3233.7,3233.0,3.09305]
[1736903564261,0.7844,3233.7,3233.1,0.03092649]
[1736903564575,0.7844,3233.7,3233.1,0.02707481]
[1736903565175,0.7844,3233.5,3233.1,0.02707481]
[1736903565388,0.7844,3233.5,3232.7,3.09329]
[1736903565899,3.87718,3233.4,3232.5,0.62405464]
[1736903566101,3.87718,3233.4,3232.4,3.0]
[1736903566261,0.7844,3233.3,3232.3,3.90832]
[1736903566461,0.387718,3233.2,3232.3,3.90832]
[1736903567098,0.387718,3233.2,3232.4,0.61109871]
[1736903567475,0.8106,3233.1,3232.4,0.61109871]
[1736903567800,0.8106,3233.0,3232.0,0.7738]
[1736903567991,0.8106,3233.0,3232.2,3.09383]
[1736903568592,0.8106,3233.0,3232.3,0.62758808]
[1736903569026,0.390364,3232.9,3232.3,0.62758808]
[1736903569835,3.90391,3232.8,3231.8,3.09423]
[1736903570044,3.90391,3232.8,3231.8,3.12516703]
[1736903570527,3.09341,3232.7,3232.1,0.61275466]
[1736903570837,0.8106,3232.6,3232.1,0.61275466]
[1736903571037,3.0937,3232.4,3231.4,3.9981667]
[1736903571337,0.8106,3232.3,3231.5,3.0]
[1736903571541,0.8106,3232.3,3231.6,3.09436]
[1736903571724,0.8106,3232.3,3231.6,3.12530077]
[1736903571929,0.8106,3232.3,3231.9,0.61238277]
[1736903572127,3.09311,3233.0,3232.1,3.09396]
[1736903572331,0.8106,3232.9,3232.3,3.09371]
[1736903572847,0.8106,3232.9,3232.2,0.0309364]
[1736903573027,0.8106,3232.9,3232.1,3.09392]
[1736903574339,3.09329,3232.8,3231.8,6.3185167]
[1736903574545,0.8106,3232.7,3231.8,6.3185167]
[1736903574858,0.8106,3232.7,3231.8,3.09415]
[1736903575076,3.09363,3232.5,3231.7,3.84873129]
[1736903575364,0.8106,3232.4,3231.6,9.3187867]
[1736903575532,0.8106,3232.4,3231.6,6.09442]
[1736903577257,0.8106,3232.4,3231.6,6.72176012]
[1736903579961,1.20101,3232.4,3231.6,6.72176012]
[1736903581367,0.8106,3232.4,3231.7,0.0309401]
[1736903581531,0.8106,3232.4,3231.8,3.09423]
[1736903581941,0.8106,3232.4,3231.7,3.2553068]
[1736903582265,0.8044,3233.2,3231.9,0.03094007]
[1736903582439,0.8044,3233.2,3232.5,3.09349]
[1736903583904,0.8044,3233.2,3232.6,0.03093279]
[1736903584235,0.8044,3233.2,3232.6,3.12439279]
[1736903584578,0.8044,3233.2,3232.6,0.03093279]
[1736903584779,0.8044,3233.5,3233.0,3.09307]
[1736903584933,0.8044,3233.5,3232.8,3.09325]
[1736903585973,0.8044,3233.5,3232.8,3.12417802]
[1736903586386,0.8044,3233.5,3232.8,3.09325]
[1736903587081,0.8044,3233.5,3232.6,0.30309328]
[1736903587288,0.8044,3233.4,3232.5,3.2243667]
[1736903587590,0.8044,3233.0,3232.5,3.2243667]
[1736903587792,3.89788,3232.6,3232.5,3.2243667]
[1736903588174,8.41325,3232.9,3232.0,3.2243667]
[1736903588175,3.09359,3232.5,3232.0,3.2243667]
[1736903588342,0.8044,3232.4,3232.0,3.2243667]
[1736903588533,1.194199,3232.4,3231.5,0.63313741]
[1736903588738,0.8044,3232.2,3231.5,0.63313741]
[1736903588972,0.8044,3232.2,3231.5,3.72765741]
[1736903589738,0.8044,3232.2,3231.3,3.2243667]
[1736903589939,0.8044,3232.0,3231.3,3.2243667]
[1736903590371,0.8044,3232.0,3231.2,0.62992955]
[1736903590572,1.194237,3232.0,3231.2,0.62992955]
[1736903590846,1.194237,3232.0,3231.3,0.02705477]
[1736903591590,1.194237,3232.0,3231.3,3.12173477]
[1736903591741,0.8044,3232.0,3231.3,3.12173477]
[1736903592795,0.8044,3232.0,3231.3,0.02705477]
[1736903593389,0.8044,3232.0,3231.1,3.90071]
[1736903593544,0.8044,3232.0,3231.4,0.02781996]
[1736903593748,0.8044,3232.0,3231.1,3.90071]
[1736903594089,0.8044,3232.0,3231.1,4.50558871]
[1736903594288,1.194231,3232.0,3231.2,0.02781996]
[1736903594992,1.194231,3232.0,3231.0,0.03094414]
[1736903594993,0.8044,3231.4,3231.0,0.03094414]
[1736903595217,6.89951,3230.9,3230.8,3.2243667]
[1736903595406,7.44951,3230.9,3230.8,3.2243667]
[1736903595548,7.44951,3230.9,3230.1,6.7e-06]
[1736903595549,3.09578,3230.2,3230.1,6.7e-06]
[1736903595898,7.00605042,3230.2,3230.1,6.7e-06]
[1736903596200,11.53097777,3230.2,3230.1,6.7e-06]
[1736903596400,3.09625,3229.8,3229.2,0.61746614]
[1736903596547,0.8353401,3229.7,3228.6,3.86924005]
[1736903596741,1.22849911,3229.7,3228.7,0.03096679]
[1736903596947,1.22849911,3229.7,3228.6,4.25616406]
[1736903597191,3.09636,3229.6,3228.6,4.25616406]
[1736903597390,0.0309401,3229.5,3228.6,3.41789099]
[1736903597593,0.0309401,3229.5,3228.7,0.6515291]
[1736903597954,0.0309401,3229.5,3228.7,0.62819331]
[1736903598167,1.19755901,3229.7,3228.8,0.03096699]
[1736903598494,3.90069,3229.7,3228.8,0.03096699]
[1736903598661,0.8044,3229.7,3228.8,0.03096699]
[1736903599017,0.998,3230.3,3229.1,3.09674]
[1736903599284,0.189,3230.2,3229.2,0.03096094]
[1736903599481,3.9047,3230.3,3229.2,0.03096094]
[1736903599667,0.189,3230.2,3229.2,0.34373103]
[1736903599984,0.189,3230.2,3229.2,3.44045103]
[1736903600677,0.189,3230.2,3229.3,0.60716047]
[1736903600887,0.189,3230.2,3229.4,0.03096095]
[1736903601055,0.809,3230.3,3229.4,0.03096095]
[1736903601399,0.809,3230.3,3229.5,3.0]
[1736903601581,0.809,3230.3,3229.5,3.70442494]
[1736903602477,0.809,3230.3,3229.5,3.67346514]
[1736903602880,0.0309401,3230.2,3229.5,0.67346514]
[1736903603072,0.0309401,3230.2,3229.3,3.0]
[1736903604387,4.09371,3230.3,3229.3,3.03096124]
[1736903604766,4.09371,3230.3,3229.3,3.12759124]
[1736903604767,0.998,3230.3,3229.3,3.12759124]
[1736903604962,0.998,3230.3,3229.4,0.37423831]
[1736903605289,0.998,3230.3,3229.5,0.03095942]
[1736903605489,0.0309401,3230.2,3229.4,0.37423831]
[1736903605849,3.09598,3230.0,3229.0,0.63147771]
[1736903606049,0.809,3229.7,3228.6,0.8214]
[1736903606290,3.09646,3229.5,3228.6,1.45436675]
[1736903606527,0.0309401,3229.4,3228.6,0.8214]
[1736903607489,0.0309401,3229.4,3228.6,3.8214]
[1736903607792,0.0309401,3229.4,3228.6,4.513279]
[1736903608289,0.0309401,3229.6,3228.6,4.513279]